bitfinex/quotes_SOLUSD_20250209
["timestamp","ask_amount","ask_price","bid_price","bid_amount"]
[1739141315332,20.0,198.53,198.48,20.18058862]
[1739141315832,20.0,198.53,198.5,15.14238862]
[1739141316451,20.0,198.53,198.49,15.14238862]
[1739141317330,5.0367,198.54,198.49,15.14238862]
[1739141317530,5.0365,198.55,198.5,15.14238862]
[1739141318340,0.03,198.52,198.48,15.14238862]
[1739141319955,0.15549,198.52,198.46,15.14238862]
[1739141321058,0.15549,198.52,198.44,15.14238862]
[1739141321231,13.56733853,198.52,198.44,15.14238862]
[1739141321631,13.56733853,198.52,198.4,0.063]
[1739141321632,13.53733853,198.5,198.42,15.14238862]
[1739141321830,13.53733853,198.5,198.4,0.063]
[1739141321831,0.12549,198.45,198.4,0.063]
[1739141322033,5.0393,198.44,198.4,0.063]
[1739141322236,0.12549,198.43,198.4,0.063]
[1739141322556,13.53733853,198.43,198.4,0.063]
[1739141323657,0.12549,198.43,198.4,0.063]
[1739141323843,5.0398,198.42,198.4,0.063]
[1739141327973,13.53733853,198.41,198.4,0.063]
[1739141328277,5.16669,198.37,198.32,15.14238862]
[1739141329278,5.16669,198.37,198.3,15.20538862]
[1739141329568,5.16669,198.37,198.32,15.14238862]
[1739141330470,13.41184853,198.38,198.32,15.14238862]
[1739141330768,0.12549,198.37,198.32,15.14238862]
[1739141331069,5.0405,198.39,198.32,15.14238862]
[1739141331264,5.0405,198.39,198.34,15.14238862]
[1739141331571,0.12549,198.38,198.34,15.14238862]
[1739141331947,13.53733853,198.4,198.34,15.14238862]
[1739141332579,18.57763853,198.4,198.34,15.14238862]
[1739141333149,5.16579,198.4,198.34,15.14238862]
[1739141333866,0.12549,198.4,198.34,15.14238862]
[1739141334666,5.04,198.42,198.36,15.14238862]
[1739141334976,0.12549,198.41,198.36,15.14238862]
[1739141338469,5.16559,198.41,198.36,15.14238862]
[1739141338774,0.12549,198.41,198.36,15.14238862]
[1739141339651,5.16549,198.41,198.36,15.14238862]
[1739141339853,5.16549,198.41,198.33,5.042]
[1739141339854,5.16549,198.41,198.34,15.14238862]
[1739141341272,5.16549,198.41,198.34,15.20538862]
[1739141342670,0.12549,198.39,198.34,0.063]
[1739141342874,0.12549,198.36,198.34,0.063]
[1739141343173,5.16679,198.36,198.34,0.063]
[1739141344864,13.53733853,198.35,198.34,0.063]
[1739141345076,13.53733853,198.35,198.3,0.063]
[1739141345077,0.12549,198.31,198.3,0.063]
[1739141346276,5.16809,198.31,198.3,0.063]
[1739141348469,18.57993853,198.31,198.3,0.063]
[1739141348667,33.86159717,198.31,198.3,0.063]
[1739141348885,20.12549,198.27,198.2,0.063]
[1739141349189,0.12549,198.25,198.2,0.063]
[1739141349365,0.25098,198.25,198.2,0.063]
[1739141349778,28.94448717,198.21,198.2,0.063]
[1739141350688,13.66282853,198.2,198.19,0.063]
[1739141350875,13.66282853,198.16,198.11,15.28165864]
[1739141351072,28.94448717,198.16,198.1,0.063]
[1739141352485,18.70942853,198.15,198.1,0.063]
[1739141354279,13.66282853,198.12,198.07,13.90765864]
[1739141354586,28.94448717,198.12,198.05,13.78165864]
[1739141355093,0.25098,198.08,198.01,20.33165864]
[1739141355270,0.25098,198.08,198.01,15.28165864]
[1739141355469,13.66282853,198.08,197.99,15.34465864]
[1739141355713,13.66282853,198.08,197.99,20.39525864]
[1739141355889,13.66282853,198.06,197.99,15.34465864]
[1739141356099,0.12549,198.04,197.99,0.063]
[1739141356485,13.66282853,198.04,197.99,0.063]
[1739141356679,20.24302853,198.04,197.99,0.063]
[1739141357079,13.66282853,198.02,197.99,0.063]
[1739141357268,13.66282853,198.0,197.99,0.063]
[1739141358195,18.71332853,198.0,197.99,0.063]
[1739141358582,48.94448717,197.97,197.96,0.063]
[1739141359076,0.25098,197.92,197.88,0.063]
[1739141359395,33.66282853,197.89,197.88,0.063]
[1739141360671,53.99778717,197.89,197.88,0.063]
[1739141362095,48.94448717,197.89,197.88,0.063]
[1739141362399,33.66282853,197.89,197.88,0.063]
[1739141362581,0.25098,197.89,197.88,0.063]
[1739141363328,20.58593864,197.89,197.88,0.063]
[1739141363621,20.58593864,197.89,197.71,15.28165864]
[1739141363622,20.0,197.8,197.71,15.28165864]
[1739141364118,15.28165864,197.83,197.75,15.28165864]
[1739141364320,1.0,197.92,197.77,15.28165864]
[1739141364321,15.28165864,197.85,197.77,15.28165864]
[1739141364693,13.34737268,197.89,197.79,15.28165864]
[1739141364694,22.41603132,197.89,197.79,15.28165864]
[1739141364901,20.33465864,197.91,197.83,15.28165864]
[1739141365215,13.66282853,197.87,197.83,15.28165864]
[1739141365398,13.66282853,197.87,197.81,15.28165864]
[1739141366221,13.66282853,197.87,197.81,20.33695864]
[1739141366402,13.66282853,197.87,197.83,15.28165864]
[1739141366603,5.0525,197.92,197.85,15.28165864]
[1739141366804,15.28165864,197.93,197.85,15.28165864]
[1739141366805,20.33385864,197.93,197.85,15.28165864]
[1739141367022,20.0,197.9,197.85,15.28165864]
[1739141367325,13.53733853,197.92,197.85,15.28165864]
[1739141367826,13.53733853,197.92,197.81,5.0553]
[1739141367827,13.53733853,197.92,197.86,24.54610613]
[1739141368124,5.052,197.95,197.88,24.54610613]
[1739141368321,24.54610613,197.96,197.88,24.54610613]
[1739141368507,13.53733853,197.95,197.88,24.54610613]
[1739141368706,0.12549,197.95,197.9,24.54610613]
[1739141369010,29.59710613,197.98,197.9,24.54610613]
[1739141369212,13.53733853,197.97,197.9,24.54610613]
[1739141369724,20.0,197.94,197.9,24.54610613]
[1739141370029,13.53733853,197.97,197.9,24.54610613]
[1739141370406,13.53733853,197.97,197.92,24.54610613]
[1739141370595,20.0,197.97,197.94,24.54610613]
[1739141370800,24.54610613,198.02,197.94,24.54610613]
[1739141371023,5.0502,198.01,197.94,24.54610613]
[1739141371331,13.53733853,198.0,197.94,24.54610613]
[1739141371532,13.53733853,198.0,197.96,24.54610613]
[1739141372029,33.53733853,198.0,197.96,24.54610613]
[1739141374303,20.0,198.0,197.96,24.54610613]
[1739141376737,13.53733853,198.03,197.96,24.54610613]
[1739141376903,18.58703853,198.03,197.96,24.54610613]
[1739141378821,0.12549,198.02,197.96,24.54610613]
[1739141381334,0.12549,198.02,197.96,29.59760613]
[1739141381718,0.12549,198.01,197.96,29.59760613]
[1739141382206,0.12549,198.01,197.96,24.54610613]
[1739141383332,5.17589,198.01,197.96,24.54610613]
[1739141384423,0.12549,198.01,197.96,24.54610613]
[1739141389648,0.12549,198.01,197.96,15.32668114]
[1739141391609,0.12549,198.01,197.97,15.32668114]
[1739141392918,5.17589,198.01,197.97,15.32668114]
[1739141394945,5.17589,198.01,197.98,15.32668114]
[1739141395316,0.12549,197.99,197.93,15.32668114]
[1739141396438,5.051,197.98,197.93,15.32668114]
[1739141405073,0.12549,197.99,197.93,15.32668114]
[1739141405271,5.17629,197.99,197.93,15.32668114]
[1739141406852,5.17629,197.99,197.94,15.32668114]
[1739141407968,5.17629,197.99,197.95,15.32668114]
[1739141408167,5.0499,198.02,197.96,15.32668114]
[1739141408977,13.66282853,198.01,197.95,15.32668114]
[1739141409151,5.0505,198.0,197.96,15.32668114]
[1739141410452,16.87148114,198.03,197.96,15.32668114]
[1739141410661,5.0502,198.02,197.98,15.32668114]
[1739141410876,5.0502,198.02,197.97,15.32668114]
[1739141411775,5.0502,198.02,197.96,9.80731172]
[1739141411948,6.5946,198.03,197.98,9.80731172]
[1739141412145,0.03,198.02,197.98,9.80731172]
[1739141416664,0.03,198.02,197.99,9.80731172]
[1739141416868,9.83731172,198.02,197.96,9.80731172]
[1739141417379,9.80731172,197.99,197.92,9.80731172]
[1739141419469,14.85811172,197.99,197.92,9.80731172]
[1739141420367,5.0508,197.99,197.94,9.80731172]
[1739141420679,5.0508,197.99,197.93,9.80731172]
[1739141420877,5.0508,197.99,197.94,9.80731172]
[1739141421693,5.0508,197.99,197.93,9.80731172]
[1739141422176,14.85811172,197.99,197.92,9.80731172]
[1739141422861,9.80731172,197.98,197.92,9.80731172]
[1739141423083,9.80731172,197.98,197.91,9.80731172]
[1739141423290,5.0508,197.99,197.94,9.80731172]
[1739141423784,14.85811172,197.99,197.93,9.80731172]
[1739141424189,5.0508,197.99,197.93,9.80731172]
[1739141425471,0.03,198.02,197.98,9.80731172]
[1739141425782,0.03,198.02,197.97,9.80731172]
[1739141426903,0.03,198.02,197.96,9.80731172]
[1739141428985,0.03,198.02,197.98,9.80731172]
[1739141429558,0.03,198.02,197.98,15.32280406]
[1739141431586,0.03,198.02,197.99,15.32280406]
[1739141432783,0.03,198.02,197.98,15.32280406]
[1739141433093,0.03,198.02,197.99,15.32280406]
[1739141433291,0.03,198.02,198.0,15.32280406]
[1739141433591,0.03,198.02,198.01,15.32280406]
[1739141435173,0.03,198.02,198.0,15.32280406]
[1739141437085,0.03,198.02,198.01,15.32280406]
[1739141441501,0.03,198.02,197.97,1.0]
[1739141441502,0.03,198.02,198.0,15.32280406]
[1739141441879,0.03,198.02,198.01,15.32280406]
[1739141447782,0.03,198.02,198.01,20.37300406]
[1739141448182,0.03,198.02,198.01,15.32280406]
[1739141449198,0.03,198.02,198.01,20.37300406]
[1739141449610,0.03,198.02,198.01,14.85199343]
[1739141458385,0.03,198.02,198.01,15.85199343]
[1739141458592,0.03,198.02,198.01,16.60922419]
[1739141459193,0.03,198.02,198.01,30.02107272]
[1739141459386,0.03,198.02,198.01,31.02107272]
[1739141460605,0.03,198.02,198.01,30.02107272]
[1739141460785,0.03,198.02,198.01,31.02107272]
[1739141461109,0.03,198.02,198.01,30.02107272]
[1739141461406,0.03,198.02,198.01,31.02107272]
[1739141463409,0.0001,198.02,198.01,31.02107272]
[1739141469288,0.03,198.08,198.03,1.0]
[1739141469492,0.03,198.08,198.07,9.80179343]
[1739141470912,0.03,198.08,198.07,14.85049343]
[1739141472191,0.03,198.08,198.07,19.89719343]
[1739141473517,0.03,198.08,198.07,60.86138846]
[1739141473911,6.7002,198.18,198.15,9.80179343]
[1739141474301,1.6543,198.18,198.15,9.80179343]
[1739141474616,1.6543,198.18,198.17,9.80179343]
[1739141475319,1.6543,198.18,198.17,14.84789343]
[1739141475611,0.03,198.2,198.17,14.84789343]
[1739141475824,0.03,198.2,198.19,9.80179343]
[1739141477124,0.03,198.2,198.19,54.05456715]
[1739141477423,0.03,198.2,198.19,55.05456715]
[1739141479231,0.03,198.21,198.2,1.0]
[1739141479426,0.03,198.21,198.2,50.76544797]
[1739141480029,0.03,198.21,198.2,55.81084797]
[1739141483609,0.03,198.22,198.21,1.0]
[1739141483808,0.03,198.22,198.21,10.80179343]
[1739141485835,1.591,198.28,198.23,1.0]
[1739141486023,1.591,198.28,198.27,9.80179343]
[1739141486224,0.03,198.28,198.27,9.80179343]
[1739141487633,0.03,198.28,198.27,10.80179343]
[1739141487937,0.03,198.28,198.27,11.55803178]
[1739141488137,0.03,198.28,198.27,16.60163178]
[1739141488323,0.03,198.28,198.27,55.8088055]
[1739141490739,6.695,198.38,198.3,5.0428]
[1739141490944,6.695,198.38,198.36,9.80179343]
[1739141493256,1.6541,198.38,198.36,9.80179343]
[1739141496975,1.6841,198.38,198.37,9.80179343]
[1739141499656,0.03,198.38,198.37,9.80179343]
[1739141499864,0.03,198.38,198.37,14.84279343]
[1739141501357,0.03,198.38,198.37,15.84279343]
[1739141502068,0.03,198.38,198.37,16.84279343]
[1739141504366,0.03,198.41,198.4,54.04926715]
[1739141505265,0.03,198.41,198.4,55.04926715]
[1739141506542,0.03,198.41,198.4,69.46111568]
[1739141506865,0.03,198.42,198.41,2.0]
[1739141507045,0.03,198.42,198.41,12.55746024]
[1739141507365,0.03,198.42,198.41,25.96930877]
[1739141508052,1.575,198.48,198.43,2.0]
[1739141508248,1.6126,198.52,198.47,9.80179343]
[1739141508455,1.6126,198.52,198.49,9.80179343]
[1739141509271,1.6126,198.52,198.5,9.80179343]
[1739141510254,1.6126,198.52,198.51,9.80179343]
[1739141510578,0.03,198.52,198.51,9.80179343]
[1739141511671,0.03,198.52,198.51,14.83929343]
[1739141512057,0.03,198.58,198.52,1.0]
[1739141512243,0.03,198.58,198.57,9.80179343]
[1739141514678,0.03,198.58,198.57,14.83779343]
[1739141514986,0.03,198.58,198.57,16.59291145]
[1739141515151,0.03,198.61,198.57,56.80008517]
[1739141515351,0.03,198.61,198.6,49.00896715]
[1739141515563,0.03,198.61,198.6,9.80179343]
[1739141516077,0.03,198.61,198.6,14.83699343]
[1739141516296,0.03,198.61,198.6,54.04416715]
[1739141517876,0.03,198.61,198.6,55.04416715]
[1739141518078,0.03,198.61,198.6,55.79912274]
[1739141518857,0.03,198.67,198.61,10.80179343]
[1739141519058,0.03,198.67,198.66,9.80179343]
[1739141521390,0.03,198.67,198.64,9.80179343]
[1739141522284,0.03,198.67,198.65,9.80179343]
[1739141522874,0.03,198.67,198.66,9.80179343]
[1739141526464,0.03,198.68,198.66,9.80179343]
[1739141526666,0.03,198.68,198.67,9.80179343]
[1739141527783,0.03,198.68,198.67,14.83519343]
[1739141542177,0.03,198.68,198.67,15.58991983]
[1739141543397,0.03,198.72,198.68,1.0]
[1739141543583,0.03,198.72,198.71,9.80179343]
[1739141544710,0.03,198.72,198.71,10.55635272]
[1739141544911,0.03,198.72,198.71,15.58875272]
[1739141545416,1.5509,198.78,198.71,28.16985272]
[1739141545622,0.03,198.78,198.76,9.80179343]
[1739141546119,0.03,198.78,198.77,9.80179343]
[1739141547189,0.03,198.78,198.77,14.83269343]
[1739141547592,0.03,198.83,198.77,14.83269343]
[1739141547797,0.03,198.83,198.82,9.80179343]
[1739141549720,0.03,198.83,198.82,14.83139343]
[1739141549919,0.03,198.83,198.82,15.58559082]
[1739141550211,0.03,198.88,198.85,20.0]
[1739141550386,6.5777,198.96,198.87,9.80179343]
[1739141550589,1.5515,198.96,198.91,9.80179343]
[1739141550791,1.5515,198.96,198.93,9.80179343]
[1739141551586,0.03,198.98,198.93,9.80179343]
[1739141551785,0.03,198.98,198.95,9.80179343]
[1739141552193,0.03,198.98,198.96,9.80179343]
[1739141552412,0.03,198.98,198.97,9.80179343]
[1739141552742,0.03,198.99,198.97,10.80179343]
[1739141553018,0.03,198.99,198.98,0.75352255]
[1739141553418,0.03,198.99,198.98,5.77912255]
[1739141553720,0.03,198.99,198.98,20.93982491]
[1739141553891,0.03,198.99,198.98,21.93982491]
[1739141554092,0.03,198.99,198.98,37.10052727]
[1739141554414,0.03,199.03,199.02,21.0]
[1739141554595,0.03,199.03,199.02,36.91399075]
[1739141554801,0.03,199.04,199.03,1.0]
[1739141555003,0.03,199.04,199.03,16.16070236]
[1739141555395,5.0213,199.15,199.03,21.18500236]
[1739141555597,1.6085,199.16,199.11,15.16070236]
[1739141555798,1.6085,199.16,199.13,15.16070236]
[1739141556027,0.03,199.19,199.13,15.16070236]
[1739141556199,0.03,199.19,199.15,15.16070236]
[1739141557039,0.03,199.19,199.16,15.16070236]
[1739141558107,0.03,199.19,199.17,15.16070236]
[1739141558292,0.03,199.24,199.18,15.16070236]
[1739141558497,0.03,199.24,199.2,15.16070236]
[1739141558698,0.03,199.24,199.21,15.16070236]
[1739141559305,0.03,199.24,199.22,15.16070236]
[1739141559503,0.03,199.24,199.23,15.16070236]
[1739141560502,0.03,199.24,199.23,16.16070236]
[1739141561099,0.03,199.24,199.23,29.57255089]
[1739141561300,0.03,199.24,199.23,29.82353089]
[1739141561498,0.03,199.24,199.23,34.84283089]
[1739141561815,0.03,199.24,199.23,35.84283089]
[1739141562724,0.03,199.29,199.28,1.0]
[1739141562901,0.03,199.29,199.28,16.91304645]
[1739141563230,0.03,199.29,199.28,45.48559734]
[1739141563522,0.03,199.29,199.28,50.50359734]
[1739141563898,5.0148,199.41,199.3,1.0]
[1739141564093,5.0148,199.41,199.36,15.16070236]
[1739141564311,0.03,199.42,199.37,15.16070236]
[1739141564523,0.03,199.42,199.38,15.16070236]
[1739141565100,0.03,199.42,199.39,15.16070236]
[1739141565720,0.03,199.42,199.38,15.16070236]
[1739141566926,0.03,199.42,199.37,15.16070236]
[1739141567107,15.16070236,199.41,199.33,15.16070236]
[1739141567312,15.16070236,199.39,199.31,15.16070236]
[1739141567526,20.17620236,199.38,199.3,15.16070236]
[1739141567826,15.16070236,199.37,199.29,15.16070236]
[1739141568025,15.16070236,199.35,199.27,15.16070236]
[1739141568227,15.16070236,199.33,199.25,15.16070236]
[1739141568525,15.16070236,199.33,199.22,0.75253159]
[1739141568526,15.16070236,199.31,199.23,15.16070236]
[1739141568695,15.16070236,199.3,199.22,15.16070236]
[1739141568901,15.16070236,199.29,199.21,15.16070236]
[1739141569120,15.16070236,199.27,199.19,15.16070236]
[1739141569334,15.16070236,199.24,199.17,15.16070236]
[1739141569602,15.16070236,199.3,199.16,8.25727155]
[1739141569603,20.18020236,199.22,199.16,7.50450982]
[1739141569865,15.16070236,199.2,199.12,15.16070236]
[1739141570223,15.16070236,199.17,199.1,15.16070236]
[1739141570539,15.16070236,199.14,199.07,15.16070236]
[1739141570742,15.16070236,199.13,199.06,15.16070236]
[1739141570928,15.16070236,199.1,199.03,7.50450982]
[1739141571131,17.16070236,199.2,199.03,7.50450982]
[1739141571132,15.16070236,199.09,199.03,7.50450982]
[1739141571332,15.16070236,199.07,199.03,7.50450982]
[1739141571631,24.26860054,199.04,199.03,7.50450982]
[1739141571830,24.26860054,199.04,198.96,24.26860054]
[1739141572005,24.26860054,199.02,198.95,39.42930254]
[1739141572209,24.26860054,199.1,198.93,0.063]
[1739141572210,24.26860054,198.99,198.93,0.063]
[1739141572735,24.26860054,198.98,198.93,0.063]
[1739141572942,24.26860054,198.95,198.93,0.063]
[1739141573360,24.26860054,199.0,198.93,0.063]
[1739141573361,24.26860054,198.94,198.93,0.063]
[1739141573870,24.26860054,198.94,198.86,23.06879124]
[1739141573871,29.29540054,198.94,198.86,23.06879124]
[1739141574023,24.26860054,198.87,198.86,23.06879124]
[1739141574457,24.26860054,198.87,198.75,24.26860054]
[1739141574621,24.26860054,198.81,198.73,44.48624054]
[1739141574826,24.26860054,198.8,198.73,0.063]
[1739141575053,24.26860054,198.78,198.73,0.063]
[1739141575232,1.0,198.87,198.73,0.063]
[1739141575233,24.26860054,198.76,198.73,0.063]
[1739141575555,24.26860054,198.74,198.73,0.063]
[1739141575758,24.26860054,198.75,198.73,0.063]
[1739141575927,24.26860054,198.74,198.73,0.063]
[1739141576541,24.26860054,198.74,198.67,0.063]
[1739141576751,24.26860054,198.69,198.67,0.063]
[1739141577341,24.26860054,198.7,198.67,0.063]
[1739141577728,39.57325724,198.7,198.67,0.063]
[1739141577960,39.57325724,198.68,198.67,0.063]
[1739141578866,39.57325724,198.67,198.62,0.063]
[1739141579853,5.0321,198.73,198.6,15.13581826]
[1739141580060,39.57325724,198.67,198.6,15.13581826]
[1739141580554,39.57325724,198.67,198.6,20.17091826]
[1739141580743,39.57325724,198.67,198.59,39.57325724]
[1739141580949,5.0321,198.73,198.59,4.56313613]
[1739141581147,39.57325724,198.66,198.59,9.59853613]
[1739141582073,39.57325724,198.66,198.59,5.0354]
[1739141582232,39.57325724,198.64,198.57,5.0357]
[1739141582437,39.57325724,198.63,198.57,5.0357]
[1739141582657,39.57325724,198.62,198.57,5.0357]
[1739141582956,5.033,198.69,198.57,5.0357]
[1739141582957,39.57325724,198.63,198.59,0.063]
[1739141583261,39.57325724,198.6,198.59,0.063]
[1739141583846,44.60845724,198.6,198.59,0.063]
[1739141587552,84.18171448,198.6,198.59,0.063]
[1739141587874,0.12549,198.59,198.47,5.1013]
[1739141588031,39.57325724,198.51,198.47,0.063]
[1739141588235,39.57325724,198.49,198.47,0.063]
[1739141588854,44.61125724,198.49,198.47,0.063]
[1739141591152,0.25098,198.48,198.47,0.0001]
[1739141591356,15.66282853,198.48,198.47,0.0001]
[1739141591859,5.0393,198.44,198.42,0.063]
[1739141592176,39.57325724,198.43,198.42,0.063]
[1739141593254,39.69874724,198.43,198.42,0.063]
[1739141593456,20.0,198.41,198.4,0.063]
[1739141593682,99.14651448,198.41,198.4,0.063]
[1739141593978,104.43749448,198.41,198.4,0.063]
[1739141594180,14.66282853,198.4,198.39,0.0001]
[1739141594591,39.57325724,198.31,198.28,0.063]
[1739141595080,39.57325724,198.33,198.28,0.063]
[1739141596070,39.57325724,198.29,198.28,0.063]
[1739141597582,44.61635724,198.29,198.28,0.063]
[1739141598485,5.0431,198.29,198.28,0.063]
[1739141599180,5.16859,198.29,198.28,0.063]
[1739141599781,29.63876388,198.29,198.28,0.063]
[1739141599981,24.47017388,198.22,198.14,24.47017388]
[1739141601986,24.47017388,198.22,198.15,5.0464]
[1739141602294,29.51507388,198.22,198.14,5.0469]
[1739141603154,24.47017388,198.22,198.14,5.0469]
[1739141603364,5.0443,198.25,198.16,24.47017388]
[1739141604070,24.47017388,198.28,198.2,24.47017388]
[1739141604490,24.47017388,198.26,198.18,24.47017388]
[1739141605061,24.47017388,198.24,198.16,24.47017388]
[1739141605262,24.47017388,198.22,198.14,24.47017388]
[1739141605488,24.47017388,198.22,198.13,5.0471]
[1739141605868,24.47017388,198.2,198.12,29.51757388]
[1739141606286,24.47017388,198.14,198.08,0.063]
[1739141606587,24.47017388,198.12,198.08,0.063]
[1739141608676,24.47017388,198.16,198.08,24.53317388]
[1739141608875,29.67017388,198.18,198.1,24.47017388]
[1739141609077,29.67017388,198.18,198.11,5.0477]
[1739141609278,24.47017388,198.14,198.09,5.0482]
[1739141609476,20.0,198.15,198.08,0.063]
[1739141609477,24.47017388,198.12,198.08,0.063]
[1739141610295,24.47017388,198.14,198.08,0.063]
[1739141611296,24.47017388,198.12,198.08,0.063]
[1739141611677,24.47017388,198.1,198.08,0.063]
[1739141612069,0.25098,198.09,198.08,0.063]
[1739141613186,5.29918,198.09,198.08,0.063]
[1739141613806,18.71102853,198.09,198.08,0.063]
[1739141614509,43.18120241,198.09,198.08,0.063]
[1739141616301,18.71102853,198.09,198.08,0.063]
[1739141617607,5.29918,198.09,198.08,0.063]
[1739141618600,5.0482,198.09,198.08,0.063]
[1739141621108,24.47017388,198.14,198.08,0.063]
[1739141621285,0.03,198.15,198.08,24.53317388]
[1739141621804,0.03,198.15,198.1,24.47017388]
[1739141622175,0.03,198.15,198.12,24.47017388]
[1739141622785,0.03,198.15,198.1,24.47017388]
[1739141624308,24.47017388,198.12,198.08,6.1879]
[1739141624511,24.47017388,198.12,198.08,0.063]
[1739141624812,0.25098,198.09,198.08,0.063]
[1739141625008,20.0,198.07,198.01,0.063]
[1739141625311,5.0494,198.04,198.01,0.063]
[1739141628420,5.0492,198.06,198.01,0.063]
[1739141629314,13.66282853,198.05,198.01,0.063]
[1739141629633,5.0494,198.04,198.01,0.063]
[1739141632020,20.0,198.02,198.01,0.063]
[1739141632221,25.0499,198.02,198.01,0.063]
[1739141638724,38.71272853,198.02,198.01,0.063]
[1739141639236,20.0,197.98,197.91,6.5507]
[1739141639403,24.47017388,197.97,197.91,6.5507]
[1739141640435,5.0515,197.96,197.91,6.5507]
[1739141641124,5.0515,197.96,197.91,31.02087388]
[1739141642338,25.0512,197.98,197.91,31.02087388]
[1739141642524,5.0512,197.98,197.91,31.02087388]
[1739141644441,5.0515,197.96,197.91,6.5507]
[1739141644818,5.0515,197.96,197.89,24.47017388]
[1739141645131,5.0515,197.96,197.88,0.063]
[1739141645132,24.47017388,197.9,197.88,0.063]
[1739141645735,13.66282853,197.89,197.88,0.063]
[1739141646041,13.66282853,197.89,197.81,0.063]
[1739141646042,21.0,197.86,197.81,0.063]
[1739141646229,20.0,197.79,197.71,0.063]
[1739141646544,24.47017388,197.76,197.71,0.063]
[1739141646704,24.47017388,197.74,197.71,0.063]
[1739141647637,24.47017388,197.72,197.71,0.063]
[1739141647829,24.72115388,197.72,197.71,0.063]
[1739141648230,38.13300241,197.72,197.71,0.063]
[1739141648434,20.25098,197.69,197.68,0.063]
[1739141648738,58.13300241,197.69,197.68,0.063]
[1739141649042,13.66282853,197.66,197.55,157.39060299]
[1739141649243,24.47017388,197.59,197.55,157.39060299]
[1739141649624,24.47017388,197.57,197.49,6.6103]
[1739141650425,0.25098,197.54,197.46,24.47017388]
[1739141650743,24.47017388,197.51,197.44,24.47017388]
[1739141650930,24.47017388,197.51,197.42,26.05037388]
[1739141651339,0.25098,197.5,197.42,24.47017388]
[1739141651512,24.47017388,197.49,197.4,24.47017388]
[1739141651840,0.25098,197.45,197.37,7.40423781]
[1739141652015,13.41184853,197.47,197.37,7.40423781]
[1739141652016,40.07390909,197.38,197.37,7.40423781]
[1739141652205,58.91673762,197.38,197.37,7.40423781]
[1739141652411,64.98303762,197.38,197.37,7.40423781]
[1739141653535,65.98303762,197.38,197.37,7.40423781]
[1739141653847,65.98303762,197.38,197.22,45.14420909]
[1739141653848,0.25098,197.32,197.22,45.14420909]
[1739141654140,40.07390909,197.3,197.22,40.07390909]
[1739141654348,40.07390909,197.26,197.18,40.07390909]
[1739141655208,40.07390909,197.26,197.17,11.5022]
[1739141655209,0.25098,197.25,197.16,40.07390909]
[1739141655642,40.07390909,197.24,197.16,40.07390909]
[1739141656010,40.07390909,197.26,197.18,40.07390909]
[1739141656309,40.07390909,197.3,197.21,5.0707]
[1739141656512,40.07390909,197.32,197.22,40.07390909]
[1739141656712,7.63922841,197.26,197.22,40.07390909]
[1739141656929,7.63922841,197.26,197.25,40.07390909]
[1739141657308,15.53773564,197.28,197.27,20.0]
[1739141657540,6.80684025,197.37,197.27,60.07390909]
[1739141657719,7.67429378,197.37,197.33,40.07390909]
[1739141657918,7.67429378,197.37,197.33,15.39209826]
[1739141658530,7.67429378,197.37,197.35,40.07390909]
[1739141658842,5.2,197.56,197.36,0.25098]
[1739141659038,40.07390909,197.55,197.46,40.07390909]
[1739141659238,5.2,197.56,197.48,40.07390909]
[1739141659540,30.98349497,197.6,197.52,40.07390909]
[1739141659840,30.98349497,197.6,197.54,40.07390909]
[1739141660226,30.98349497,197.6,197.56,40.07390909]
[1739141660427,30.98349497,197.6,197.57,5.0614]
[1739141660618,40.07390909,197.67,197.58,40.07390909]
[1739141660824,5.2,197.7,197.62,40.07390909]
[1739141661208,20.0,197.7,197.64,40.07390909]
[1739141661411,20.0,197.7,197.66,40.07390909]
[1739141661621,40.07390909,197.75,197.66,40.07390909]
[1739141661823,40.07390909,197.77,197.68,40.07390909]
[1739141662217,45.27390909,197.79,197.7,40.07390909]